Workbook

Sheet 数据源 (hidden)
A1: 面试成绩 | B1: 身份证号 | C1: 姓名 | D1: 报考岗位 | E1: 综合成绩 | F1: 综合排名 | G1: 笔试成绩
A2: 89.8 | B2: 513021199210023450 | C2: 聂川 | D2: 体育管理 | E2: =G2*0.6+A2*0.4 -> 80.32 | F2: 1 | G2: 74
A3: 79.4 | B3: 511722200310198221 | C3: 余澄龙 | D3: 体育管理 | E3: =G3*0.6+A3*0.4 -> 73.16 | F3: 2 | G3: 69
A4: 69.2 | B4: 612326199906206037 | C4: 向彬 | D4: 体育管理 | E4: =G4*0.6+A4*0.4 -> 70.28 | F4: 3 | G4: 71
A7: 83.8 | B7: 511702200110280022 | C7: 方琪 | D7: 党建管理 | E7: =G7*0.6+A7*0.4 -> 75.52 | F7: 2 | G7: 70
A8: 92.1 | B8: 500381200208236725 | C8: 袁露芸 | D8: 党建管理 | E8: =G8*0.6+A8*0.4 -> 84.84 | F8: 1 | G8: 80
A9: 77.4 | B9: 511722200106056058 | C9: 袁诗堪 | D9: 党建管理 | E9: =G9*0.6+A9*0.4 -> 74.76 | F9: 3 | G9: 73
A11: 79.6 | B11: 513022199708044992 | C11: 吴港 | D11: 网络管理 | E11: =G11*0.6+A11*0.4 -> 73.84 | F11: 2 | G11: 70
A12: 69.9 | B12: 513022199809103031 | C12: 陈卓 | D12: 网络管理 | E12: =G12*0.6+A12*0.4 -> 68.76 | F12: 3 | G12: 68
A13: 91.6 | B13: 51172220040107737X | C13: 王淼 | D13: 网络管理 | E13: =G13*0.6+A13*0.4 -> 86.44 | F13: 1 | G13: 83
A16: 91.4 | B16: 511702200007270213 | C16: 刘洋成 | D16: 广告设计 | E16: =G16*0.6+A16*0.4 -> 86.96 | F16: 2 | G16: 84
A17: 91 | B17: 513022199504020040 | C17: 于晓凤 | D17: 广告设计 | E17: =G17*0.6+A17*0.4 -> 89.8 | F17: 1 | G17: 89
A18: 86.6 | B18: 511702200210272820 | C18: 杜雨薇 | D18: 广告设计 | E18: =G18*0.6+A18*0.4 -> 83.84 | F18: 3 | G18: 82
A20: 91.4 | B20: 513001199508211045 | C20: 高茂连 | D20: 会计 | E20: =G20*0.6+A20*0.4 -> 86.96 | F20: 1 | G20: 84
A21: 75.4 | B21: 51302219951113728X | C21: 胡青婷 | D21: 会计 | E21: =G21*0.6+A21*0.4 -> 69.76 | F21: 3 | G21: 66
A22: 77.8 | B22: 511923200012227634 | C22: 向俊杰 | D22: 会计 | E22: =G22*0.6+A22*0.4 -> 70.12 | F22: 2 | G22: 65
A23: 69.4 | B23: 511923199810093989 | C23: 罗琪 | D23: 会计 | E23: =G23*0.6+A23*0.4 -> 66.76 | F23: 4 | G23: 65
A25: 迟到放弃 | B25: 511724200207291017 | C25: 廖托尼 | D25: 物流管理 | E25: 44.4 | F25: 4 | G25: 74
A26: 82 | B26: 513021199711060778 | C26: 许贵杨 | D26: 物流管理 | E26: =G26*0.6+A26*0.4 -> 77.2 | F26: 2 | G26: 74
A27: 确认放弃 | B27: 513022199804250403 | C27: 刘丽 | D27: 物流管理 | E27: 45.3 | F27: 3 | G27: 75.5
A28: 89.8 | B28: 511724200107106099 | C28: 张煜 | D28: 物流管理 | E28: =G28*0.6+A28*0.4 -> 89.32 | F28: 1 | G28: 89

Sheet 个人信息查询
A1: 达州市文化旅游投资有限公司2025年度公开招聘工作人员笔试成绩查询
A3: 请输入身份证号：
A5: 姓名： | B5: =IFERROR(VLOOKUP(B3,数据源!$B:$F,2,FALSE),"") ->  | C5: 输入正确的身份证号码后自动显示
A6: 报考岗位： | B6: =IFERROR(VLOOKUP(B3,数据源!$B:$F,3,FALSE),"") -> 
A7: 综合成绩： | B7: =IFERROR(VLOOKUP(B3,数据源!$B:$F,4,FALSE),"") -> 
A8: 综合排名： | B8: =IFERROR(VLOOKUP(B3,数据源!$B:$F,5,FALSE),"") -> 
A10: 提示：请输入正确的18位身份证号码查看
